bitfinex-derivatives/quotes_BNBF0:USTF0_20250329
["timestamp","ask_amount","ask_price","bid_price","bid_amount"]
[1743249355396,3.17469428,601.34,600.53,0.27308723]
[1743249355601,3.17469428,601.33,600.53,0.27308723]
[1743249355904,4.12825102,601.32,600.53,0.27308723]
[1743249356095,3.17469428,601.31,600.53,0.27308723]
[1743249356297,3.17469428,601.3,600.53,0.27308723]
[1743249356499,3.17469428,601.29,600.53,0.27308723]
[1743249356699,1.97745941,601.28,600.53,0.27308723]
[1743249356899,1.97745941,601.27,600.53,0.27308723]
[1743249357101,1.97745941,601.26,600.53,0.27308723]
[1743249357296,1.97745941,601.25,600.53,0.27308723]
[1743249357501,0.95355674,601.29,600.53,0.27308723]
[1743249357502,1.97745941,601.24,600.53,0.27308723]
[1743249357710,1.97745941,601.23,600.53,0.27308723]
[1743249357900,1.97745941,601.22,600.53,0.27308723]
[1743249358098,1.22918762,601.21,600.53,0.27308723]
[1743249358299,1.22918762,601.2,600.53,0.27308723]
[1743249358603,1.22918762,601.19,600.54,0.2730479]
[1743249358801,1.22918762,601.18,600.53,0.2730479]
[1743249359001,1.22918762,601.18,600.52,1.72356565]
[1743249359002,0.95355674,601.2,600.54,0.2730479]
[1743249359202,0.95355674,601.19,600.53,0.2730479]
[1743249359799,0.95355674,601.18,600.53,0.2730479]
[1743249360104,0.95355674,601.18,600.52,1.434]
[1743249360299,0.95355674,601.18,600.52,1.72355722]
[1743249360906,0.95355674,601.18,600.54,1.23078804]
[1743249361204,1.942421,601.45,600.54,1.23078804]
[1743249361405,1.97416837,601.44,600.54,1.23078804]
[1743249361605,1.97416837,601.43,600.54,1.23078804]
[1743249361906,1.97416837,601.42,600.55,0.27300669]
[1743249362204,1.97416837,601.41,600.55,0.27300669]
[1743249362401,1.97416837,601.4,600.55,0.27300669]
[1743249362608,1.97416837,601.39,600.55,0.27300669]
[1743249362805,1.97416837,601.38,600.55,0.27300669]
[1743249363003,1.97416837,601.37,600.55,0.27300669]
[1743249363204,1.97416837,601.36,600.56,0.27300669]
[1743249363407,1.97416837,601.35,600.53,0.27300669]
[1743249363608,1.97416837,601.34,600.52,1.434]
[1743249363805,1.22708337,601.33,600.53,0.27300652]
[1743249364009,0.95040638,601.35,600.53,0.27300652]
[1743249364303,0.95040638,601.32,600.53,0.27300652]
[1743249364511,1.22615552,601.31,600.53,0.27300652]
[1743249364710,1.22615552,601.3,600.53,0.27300652]
[1743249364905,1.22615552,601.29,600.53,0.27300652]
[1743249365110,0.95040638,601.3,600.53,0.27300652]
[1743249365609,0.95040638,601.29,600.53,0.27300652]
[1743249366009,0.95040638,601.28,600.53,0.27300652]
[1743249366611,0.95040638,601.27,600.53,0.27300652]
[1743249367314,0.95040638,601.26,600.53,0.27300652]
[1743249367721,0.95040638,601.25,600.53,0.27300652]
[1743249368115,0.74600004,601.42,600.53,0.27300652]
[1743249368316,1.97151617,601.41,600.53,0.27300652]
[1743249368612,1.97151617,601.4,600.53,0.27300652]
[1743249368814,1.97151617,601.39,600.53,0.27300652]
[1743249369015,1.97151617,601.38,600.53,0.27300652]
[1743249369216,1.97151617,601.37,600.53,0.27300652]
[1743249369416,1.22551613,601.36,600.53,0.27300652]
[1743249369617,1.22551613,601.35,600.53,0.27300652]
[1743249369814,1.22551613,601.34,600.53,1.20100652]
[1743249370119,2.17454788,601.33,600.54,0.27300652]
[1743249370320,0.94935037,601.33,600.54,0.27300652]
[1743249370621,0.94935037,601.33,600.65,1.23078804]
[1743249370827,0.94935037,601.32,600.66,0.27300652]
[1743249371226,0.74572995,601.48,600.66,0.27300652]
[1743249371422,1.97064794,601.47,600.66,0.27300652]
[1743249371623,1.97064794,601.46,600.66,0.27300652]
[1743249371823,1.97064794,601.45,600.66,0.27300652]
[1743249372121,1.22491799,601.44,600.66,0.27300652]
[1743249372322,0.9490195,601.46,600.75,1.23078804]
[1743249372529,0.9490195,601.46,600.76,0.27300652]
[1743249372723,0.9490195,601.43,600.76,0.27300652]
[1743249373227,1.93865535,602.79,600.76,0.27300652]
[1743249373430,0.33184555,602.69,600.76,0.27300652]
[1743249373627,3.4687384,602.68,600.76,0.27300652]
[1743249373828,0.33186207,602.66,600.76,0.27300652]
[1743249374021,4.41727801,602.65,600.76,0.27300652]
[1743249374223,0.33187859,602.63,600.76,0.27300652]
[1743249374527,4.41727801,602.62,600.95,1.23078804]
[1743249374830,0.33187859,602.63,600.95,1.23078804]
[1743249374834,0.33189512,602.6,600.96,0.27300652]
[1743249375030,3.4687384,602.59,600.96,0.27300652]
[1743249375226,0.33191164,602.57,600.97,1.004]
[1743249375424,4.41727801,602.56,600.98,0.27300652]
[1743249375629,3.4687384,602.55,600.98,0.27300652]
[1743249375931,3.4687384,602.54,600.98,0.27300652]
[1743249376133,3.4687384,602.53,600.98,0.27300652]
[1743249376327,0.33194469,602.51,600.98,0.27300652]
[1743249376530,3.4687384,602.5,600.98,0.27300652]
[1743249376730,3.4687384,602.49,600.98,0.27300652]
[1743249376931,3.4687384,602.48,600.98,0.27300652]
[1743249377136,3.4687384,602.47,600.98,0.27300652]
[1743249377333,4.41727801,602.46,600.98,0.27300652]
[1743249377633,3.4687384,602.45,600.98,0.27300652]
[1743249377833,3.4687384,602.44,600.98,0.27300652]
[1743249378033,3.4687384,602.43,600.97,1.004]
[1743249378243,3.4687384,602.42,600.97,1.004]
[1743249378428,3.4687384,602.41,600.97,1.004]
[1743249378634,4.41727801,602.4,600.97,1.004]
[1743249378831,3.4687384,602.39,600.97,1.004]
[1743249379132,0.33194469,602.51,600.97,1.004]
[1743249379133,4.41727801,602.38,600.97,2.23478804]
[1743249379326,0.33194469,602.51,600.97,2.23478804]
[1743249379327,4.41727801,602.37,600.97,2.23478804]
[1743249379532,0.33203287,602.35,600.97,2.23478804]
[1743249379731,3.4687384,602.34,600.97,2.23478804]
[1743249379933,3.4687384,602.33,600.97,2.23478804]
[1743249380233,3.4687384,602.32,600.97,2.23478804]
[1743249380432,3.4687384,602.31,600.97,2.23478804]
[1743249380634,3.46876627,602.3,600.97,1.004]
[1743249380833,0.33207146,602.28,600.97,1.004]
[1743249381035,3.46876627,602.27,600.97,1.004]
[1743249381331,0.332088,602.25,600.97,1.004]
[1743249381530,3.16318804,602.24,600.97,1.004]
[1743249381735,0.33210454,602.22,600.97,1.004]
[1743249381942,3.16318804,602.21,600.97,1.004]
[1743249382129,0.33212109,602.19,600.97,1.004]
[1743249382328,3.16318804,602.18,600.97,1.004]
[1743249382534,0.33213763,602.16,600.97,1.004]
[1743249382733,4.11172765,602.15,600.97,1.004]
[1743249382935,0.33215418,602.13,600.97,1.004]
[1743249383135,3.16318804,602.12,600.97,1.004]
[1743249383337,3.49535325,602.11,600.97,1.004]
[1743249383531,3.49535877,602.1,600.97,1.004]
[1743249383731,3.49536429,602.09,600.97,1.004]
[1743249383930,3.4953698,602.08,600.97,1.004]
[1743249384136,4.44079008,602.07,600.97,1.004]
[1743249384342,3.49225599,602.06,600.97,1.004]
[1743249384639,4.44080112,602.05,600.97,1.004]
[1743249384833,3.49226703,602.04,600.97,1.004]
[1743249385038,3.49227254,602.03,600.97,1.004]
[1743249385240,3.49227806,602.02,600.97,1.004]
[1743249385438,3.49228358,602.01,600.97,1.004]
[1743249385639,4.44082871,602.0,600.97,1.004]
[1743249385842,3.49229462,601.99,600.97,1.004]
[1743249386039,3.49230014,601.98,600.97,1.004]
[1743249386348,3.49223045,601.97,600.97,1.004]
[1743249386539,3.49223596,601.96,600.97,1.004]
[1743249386840,3.49224148,601.95,600.97,1.004]
[1743249387040,4.44078661,601.94,600.97,1.004]
[1743249387240,3.49225252,601.93,600.97,1.004]
[1743249387439,4.10852759,601.92,600.97,1.004]
[1743249387641,3.15998798,601.91,600.97,1.004]
[1743249387940,3.15998798,601.9,600.97,1.004]
[1743249388140,3.49227461,601.89,600.97,1.004]
[1743249388440,4.10879489,601.88,600.97,1.004]
[1743249388734,3.16025528,601.87,600.97,1.004]
[1743249388934,3.16025528,601.86,600.97,1.004]
[1743249389144,3.16025528,601.85,600.97,1.004]
[1743249389337,3.16025528,601.84,600.97,1.004]
[1743249389536,3.16025528,601.83,600.97,1.004]
[1743249389733,0.94853961,601.85,600.98,0.27288366]
[1743249389734,3.16025528,601.82,600.98,0.27288366]
[1743249389938,3.16025528,601.81,600.98,0.27288366]
[1743249390139,3.16025528,601.8,600.98,0.27288366]
[1743249390336,3.16152089,601.79,600.98,0.27288366]
[1743249390536,3.16152089,601.78,600.98,0.27288366]
[1743249390738,4.1100605,601.77,600.98,0.27288366]
[1743249391036,4.1100605,601.76,600.98,0.27288366]
[1743249391240,3.16152089,601.75,600.98,0.27288366]
[1743249391441,3.16152089,601.74,600.98,0.27288366]
[1743249391635,4.1100605,601.73,600.98,0.27288366]
[1743249391837,3.16152089,601.72,600.98,0.27288366]
[1743249392039,4.10950651,601.71,600.98,0.27288366]
[1743249392239,3.1609669,601.7,600.98,0.27288366]
[1743249392438,1.96897416,601.69,600.98,0.27288366]
[1743249392640,1.96897416,601.68,600.98,0.27288366]
[1743249392837,1.2239787,601.67,600.98,0.27288366]
[1743249393041,1.2239787,601.66,600.98,0.27288366]
[1743249393238,1.2239787,601.65,600.98,0.27288366]
[1743249393446,0.94853961,601.65,600.98,0.27288366]
[1743249393645,1.22448943,601.64,600.98,0.27288366]
[1743249393845,0.94853961,601.63,600.98,0.27288366]
[1743249394649,0.94853961,601.62,600.98,0.27288366]
[1743249395306,0.94853961,601.61,600.98,0.27288366]
[1743249395846,0.94853961,601.6,600.98,0.27288366]
[1743249396649,0.74551319,601.77,600.98,0.27288366]
[1743249396849,1.97064478,601.76,600.98,0.27288366]
[1743249397051,1.97064478,601.75,600.98,0.27288366]
[1743249397253,1.97064478,601.74,600.98,0.27288366]
[1743249397456,1.97064478,601.73,600.98,0.27288366]
[1743249397656,1.97064478,601.72,600.98,0.27288366]
[1743249397855,1.97064478,601.71,600.99,0.27284106]
[1743249398055,1.97064478,601.7,601.0,0.27284106]
[1743249398255,1.22513159,601.69,600.98,0.27284106]
[1743249398455,0.94902164,601.72,600.99,0.27284106]
[1743249398757,0.94902164,601.69,601.0,0.27284106]
[1743249398957,0.94902164,601.69,600.98,0.27284106]
[1743249399161,0.33228663,601.89,601.02,1.23078804]
[1743249399162,1.93887284,601.86,601.02,1.23078804]
[1743249399452,1.97065586,601.85,601.02,1.23078804]
[1743249399658,1.97065586,601.84,601.03,0.27278278]
[1743249399955,1.97065586,601.83,601.03,0.27278278]
[1743249400151,2.9195046,601.82,601.02,1.23078804]
[1743249400351,1.97055204,601.81,601.03,0.2727826]
[1743249400555,1.2249845,601.8,601.03,0.2727826]
[1743249400755,1.2249845,601.79,601.03,0.2727826]
[1743249400955,1.2249845,601.78,601.03,0.2727826]
[1743249401154,1.2249845,601.77,601.03,0.2727826]
[1743249401356,2.17383324,601.76,601.04,0.27278146]
[1743249401653,1.2249845,601.75,601.23,1.23078804]
[1743249401855,0.94884874,601.76,601.24,0.27278146]
[1743249402055,0.94884874,601.74,601.24,0.27278146]
[1743249402959,0.94884874,601.73,601.24,0.27278146]
[1743249403458,0.33228663,601.89,601.24,0.27278146]
[1743249403459,0.74541951,601.87,601.24,0.27278146]
[1743249403659,1.97005808,601.86,601.24,0.27278146]
[1743249403958,1.97005808,601.85,601.24,0.27278146]
[1743249404157,1.22463857,601.84,601.25,0.27278146]
[1743249404358,1.22463857,601.83,601.26,0.27278146]
[1743249404559,2.17324977,601.82,601.23,0.27278146]
[1743249404757,0.9486112,601.82,601.24,0.27274577]
[1743249404958,0.9486112,601.82,601.23,0.27274577]
[1743249405160,1.22503614,601.81,601.24,0.27274577]
[1743249405359,0.9486112,601.8,601.24,1.339]
[1743249405562,0.9486112,601.8,601.25,0.27274577]
[1743249405953,0.9486112,601.79,601.25,0.27274577]
[1743249406351,0.9486112,601.79,601.26,0.27274671]
[1743249406556,0.9486112,601.79,601.25,0.27274671]
[1743249406758,0.9486112,601.78,601.25,0.27274671]
[1743249407153,0.33228663,601.89,601.25,0.27274671]
[1743249407353,1.97042429,601.88,601.25,0.27274671]
[1743249407556,1.97042429,601.87,601.25,0.27274671]
[1743249407755,1.97042429,601.86,601.25,0.27274671]
[1743249407955,1.97042429,601.85,601.24,1.339]
[1743249408161,1.22491455,601.84,601.26,0.27276046]
[1743249408362,1.22477687,601.83,601.24,1.339]
[1743249408661,1.22477687,601.82,601.24,1.339]
[1743249408861,1.22477687,601.81,601.24,1.339]
[1743249409161,1.22477687,601.8,601.24,1.339]
[1743249409362,2.17342329,601.79,601.24,1.339]
[1743249409560,0.94864642,601.79,601.24,1.339]
[1743249409957,0.94864642,601.78,601.24,1.339]
[1743249410363,0.94864642,601.77,601.24,1.339]
[1743249410861,0.94864642,601.76,601.24,1.339]
[1743249411563,0.94864642,601.75,601.24,1.339]
[1743249412463,0.94864642,601.74,601.24,1.339]
[1743249413463,0.94864642,601.73,601.24,1.339]
[1743249413764,0.94864642,601.72,601.24,1.339]
[1743249414263,0.94864642,601.71,601.24,1.339]
[1743249414662,0.94864642,601.7,601.24,1.339]
[1743249415065,0.74606855,601.85,601.24,1.339]
[1743249415263,1.97214519,601.84,601.24,1.339]
[1743249415458,1.97214519,601.83,601.25,0.2727764]
[1743249415663,1.97214519,601.82,601.24,1.339]
[1743249415866,1.97214519,601.81,601.24,1.339]
[1743249416075,1.97214519,601.8,601.24,1.339]
[1743249416365,2.92189904,601.79,601.24,1.339]
[1743249416565,1.97214519,601.78,601.24,1.339]
[1743249416766,1.97214519,601.77,601.24,1.339]
[1743249416966,1.97214519,601.76,601.25,0.27280314]
[1743249417157,1.97214519,601.75,601.25,0.27280314]
[1743249417364,1.22607664,601.74,601.25,0.27280314]
[1743249417561,1.22607664,601.73,601.25,0.27280314]
[1743249417866,1.22607664,601.72,601.26,0.99]
[1743249418067,1.22607664,601.71,601.26,0.99]
[1743249418267,0.94975385,601.72,601.26,0.99]
[1743249418268,1.97290311,601.7,601.26,0.99]
[1743249418464,1.97290311,601.69,601.26,0.99]
[1743249418663,1.97290311,601.68,601.26,0.99]
[1743249418863,1.97290311,601.67,601.26,0.99]
[1743249419064,2.92265696,601.66,601.26,0.99]
[1743249419264,1.97290311,601.65,601.26,0.99]
[1743249419471,1.97290311,601.64,601.26,0.99]
[1743249419668,1.97290311,601.63,601.26,0.99]
[1743249419865,1.97290311,601.62,601.26,0.99]
[1743249420077,1.94174883,601.61,601.26,0.99]
[1743249420277,4.11837538,601.6,601.26,0.99]
[1743249420570,1.97374803,601.59,601.26,0.99]
[1743249420772,1.97374803,601.58,601.26,0.99]
[1743249420973,1.97374803,601.57,601.26,0.99]
[1743249421175,1.97374803,601.56,601.26,0.99]
[1743249421473,1.97374803,601.55,601.26,0.99]
[1743249421667,1.97374803,601.54,601.26,0.99]
[1743249421869,1.97374803,601.53,601.26,0.99]
[1743249422075,1.97374803,601.52,601.26,0.99]
[1743249422279,1.97374803,601.51,601.26,0.99]
[1743249422474,1.97374803,601.5,601.26,0.99]
[1743249422683,3.16867682,601.49,601.26,0.99]
[1743249422875,3.16867682,601.48,601.27,0.995]
[1743249423179,4.11843067,601.47,601.27,0.995]
[1743249423379,4.11843067,601.46,601.27,0.995]
[1743249423681,3.16867682,601.45,601.27,0.995]
[1743249423880,3.16867682,601.44,601.27,0.995]
[1743249424080,3.16867682,601.43,601.27,0.995]
[1743249424278,3.16867682,601.42,601.27,0.995]
[1743249424483,3.16867682,601.41,601.27,0.995]
[1743249424775,4.11843067,601.4,601.27,0.995]
[1743249424980,1.97374803,601.39,601.27,0.995]
[1743249425173,2.92350188,601.38,601.27,0.995]
[1743249425378,1.97374803,601.37,601.27,0.995]
[1743249425582,1.97374803,601.36,601.27,0.995]
[1743249425789,1.97374803,601.35,601.27,0.995]
[1743249425978,3.16905157,601.34,601.27,0.995]
[1743249426173,3.16905157,601.33,601.27,0.995]
[1743249426477,3.16905157,601.32,601.27,0.995]
[1743249426679,3.16905157,601.31,601.27,0.995]
[1743249426878,3.16905157,601.3,601.27,0.995]
[1743249427075,3.16905157,601.29,601.27,0.995]
[1743249427275,3.16905157,601.28,601.27,0.995]
[1743249427584,4.11880542,601.28,601.27,0.995]
[1743249427784,4.11792638,601.28,601.27,0.995]
[1743249431678,2.89188386,601.28,601.27,0.995]
[1743249431879,4.11587778,601.28,601.27,0.995]
[1743249436381,2.92057424,601.28,601.27,0.995]
[1743249439891,2.91814603,601.28,601.27,0.995]
[1743249441799,0.94975385,601.28,601.27,0.995]
[1743249442003,2.91428342,601.28,601.27,0.995]
[1743249442603,2.17091144,601.28,601.27,0.995]
[1743249443402,0.94975385,601.28,601.27,0.995]
[1743249444202,2.17059598,601.28,601.27,0.995]
[1743249444704,0.94975385,601.28,601.27,0.995]
[1743249445301,1.93274706,601.72,601.27,0.995]
[1743249445498,3.4855316,601.71,601.27,0.995]
[1743249445699,3.15314557,601.7,601.27,0.995]
[1743249445902,4.43102177,601.69,601.27,0.995]
[1743249446101,3.48554817,601.68,601.27,0.995]
[1743249446301,3.15314557,601.67,601.27,0.995]
[1743249446602,4.43103834,601.66,601.27,0.995]
[1743249446803,3.48556475,601.65,601.27,0.995]
[1743249447002,3.48557027,601.64,601.27,0.995]
[1743249447204,3.4855758,601.63,601.27,0.995]
[1743249447502,4.43106044,601.62,601.27,0.995]
[1743249447702,3.48558685,601.61,601.27,0.995]
[1743249447903,4.43107149,601.6,601.27,0.995]
[1743249448100,3.4855979,601.59,601.27,0.995]
[1743249448303,3.48560343,601.58,601.27,0.995]
[1743249448503,3.48560895,601.57,601.27,0.995]
[1743249448703,4.4310936,601.56,601.27,0.995]
[1743249448903,3.48562001,601.55,601.27,0.995]
[1743249449107,4.43110465,601.54,601.27,0.995]
[1743249449304,3.48563106,601.53,601.27,0.995]
[1743249449502,3.48563659,601.52,601.27,0.995]
[1743249449705,3.48564212,601.51,601.27,0.995]
[1743249450005,3.48119094,601.5,601.27,0.995]
[1743249450305,3.14868887,601.49,601.27,0.995]
[1743249450502,3.14868887,601.48,601.27,0.995]
[1743249450705,3.48120753,601.47,601.27,0.995]
[1743249450907,3.48121306,601.46,601.27,0.995]
[1743249451106,3.48121858,601.45,601.06,1.175]
[1743249451301,3.48122411,601.44,601.06,1.175]
[1743249451502,3.48122964,601.43,601.06,1.175]
[1743249451702,3.14868887,601.42,601.06,1.175]
[1743249451904,3.4812407,601.41,601.06,1.175]
[1743249452105,3.14868887,601.4,601.06,1.175]
[1743249452302,3.48125176,601.39,601.06,1.175]
[1743249452502,3.48125729,601.38,601.06,1.175]
[1743249452807,3.48126282,601.37,601.06,1.175]
[1743249453007,3.14868887,601.36,601.06,1.175]
[1743249453207,3.14868887,601.35,601.06,1.175]
[1743249453406,3.14868887,601.34,601.06,1.175]
[1743249453606,3.14868887,601.33,601.06,1.175]
[1743249453806,3.14868887,601.32,601.06,1.175]
[1743249454002,3.14822964,601.31,601.06,1.175]
[1743249454203,3.14822964,601.3,601.06,1.175]
[1743249454406,3.14822964,601.29,601.06,1.175]
[1743249454709,2.90628387,601.28,601.06,2.263]
[1743249454908,1.96080475,601.27,601.06,2.263]
[1743249455108,1.96080475,601.26,601.06,2.263]
[1743249455307,1.96080475,601.25,601.06,2.263]
[1743249455507,2.90628387,601.24,601.06,2.263]
[1743249455704,1.96080475,601.23,601.06,2.263]
[1743249455907,1.96080475,601.22,601.06,2.263]
[1743249456102,1.96080475,601.21,601.06,2.263]
[1743249456303,1.96080475,601.2,601.06,2.263]
[1743249456508,1.96080475,601.19,601.06,2.263]
[1743249456709,1.96080475,601.18,601.06,2.263]
[1743249456906,2.90628387,601.17,601.06,2.263]
[1743249457107,1.96080475,601.16,601.06,2.263]
[1743249457310,1.96080475,601.15,601.06,2.263]
[1743249457512,1.96080475,601.14,601.06,2.263]
[1743249457709,1.96080475,601.13,601.06,2.263]
[1743249457915,1.96080475,601.12,601.06,2.263]
[1743249458115,1.96080475,601.11,601.06,2.263]
[1743249458318,1.96080475,601.1,601.06,2.263]
[1743249458519,1.96080475,601.09,601.06,1.088]
[1743249458722,1.96080475,601.08,601.06,1.088]
[1743249458917,2.16414332,601.07,601.06,1.088]
[1743249464013,2.16458298,601.07,601.06,1.088]
[1743249467720,2.9076095,601.07,601.06,1.088]
[1743249468119,2.90760757,601.07,601.06,1.088]
[1743249469222,2.90767419,601.07,601.06,1.088]
[1743249470015,2.91010061,601.07,601.06,1.088]
[1743249470324,4.09961099,601.07,601.06,1.088]
[1743249471618,4.09961099,601.07,600.86,1.143]
[1743249471819,1.96462149,601.06,600.86,1.143]
[1743249472024,1.2211775,601.05,600.86,1.143]
[1743249472222,1.2211775,601.04,600.86,1.143]
[1743249472423,1.2211775,601.03,600.86,1.143]
[1743249472720,2.16665662,601.02,600.86,1.143]
[1743249472920,0.94547912,601.02,600.86,1.143]
[1743249473120,0.94547912,601.01,600.86,1.143]
[1743249473718,0.94547912,601.0,600.86,1.143]
[1743249474223,0.94547912,600.99,600.86,1.143]
[1743249475123,0.94547912,600.98,600.86,1.143]
[1743249475825,0.94547912,600.97,600.86,1.143]
[1743249476625,0.94547912,600.96,600.86,1.143]
[1743249476827,1.94153952,601.33,600.86,1.143]
[1743249477028,3.1687903,601.32,600.86,1.143]
[1743249477228,3.1687903,601.31,600.86,1.143]
[1743249477429,3.1687903,601.3,600.86,1.143]
[1743249477628,4.11977067,601.29,600.86,1.143]
[1743249477824,4.11977067,601.28,600.86,1.143]
[1743249478024,1.94153952,601.27,600.86,1.143]
[1743249478227,3.1699765,601.26,600.86,1.143]
[1743249478432,4.12095687,601.25,600.86,1.143]
[1743249478632,3.1699765,601.24,600.86,1.143]
[1743249478827,3.1699765,601.23,600.86,1.143]
[1743249479025,3.1699765,601.22,600.86,1.143]
[1743249479229,3.1699765,601.21,600.86,1.143]
[1743249479425,3.1699765,601.2,600.86,1.143]
[1743249479623,3.1699765,601.19,600.86,1.143]
[1743249479834,4.12095687,601.18,600.86,1.143]
[1743249480035,3.1699765,601.17,600.86,1.143]
[1743249480336,3.1699765,601.16,600.86,1.143]
[1743249480534,3.1699765,601.15,600.86,1.143]
[1743249480835,4.12095687,601.14,600.86,1.143]
[1743249481134,3.1699765,601.13,600.86,1.143]
[1743249481433,3.1699765,601.12,600.86,1.143]
[1743249481629,3.1699765,601.11,600.78,1.252]
[1743249481829,3.1699765,601.1,600.78,1.252]
[1743249482030,3.1699765,601.09,600.78,1.252]
[1743249482231,4.12095687,601.08,600.78,1.252]
[1743249482435,3.1699765,601.07,600.78,1.252]
[1743249482635,3.1699765,601.06,600.78,1.252]
[1743249482836,3.1699765,601.05,600.78,1.252]
[1743249483037,3.1699765,601.04,600.78,1.252]
[1743249483234,3.1699765,601.03,600.78,1.252]
[1743249483431,3.1699765,601.02,600.78,1.252]
[1743249483731,3.18072869,601.01,600.78,1.252]
[1743249483935,3.18072869,601.0,600.78,1.252]
[1743249484237,3.18072869,600.99,600.78,1.252]
[1743249484437,3.18072869,600.98,600.78,1.252]
[1743249484640,1.98119365,600.97,600.78,1.252]
[1743249484833,1.98119365,600.96,600.78,1.252]
[1743249485032,2.93217402,600.95,600.78,1.252]
[1743249485232,1.98119365,600.94,600.78,1.252]
[1743249485435,1.98119365,600.93,600.78,1.252]
[1743249485636,2.9327225,600.92,600.78,1.252]
[1743249485840,1.98174213,600.91,600.78,1.252]
[1743249486040,1.98174213,600.9,600.78,1.252]
[1743249486234,1.23182556,600.89,600.78,1.252]
[1743249486438,1.23182556,600.88,600.78,1.252]
[1743249486639,1.23182556,600.87,600.78,1.252]
[1743249486941,2.18280593,600.86,600.78,1.252]
[1743249487234,1.23182556,600.85,600.78,1.252]
[1743249487438,0.95098037,600.85,600.78,1.252]
[1743249488241,0.95098037,600.84,600.78,1.252]
[1743249489139,0.95098037,600.83,600.78,1.252]
[1743249489742,0.95098037,600.82,600.78,1.252]
[1743249490238,1.19989415,601.23,600.78,1.252]
[1743249490438,3.18121539,601.22,600.78,1.252]
[1743249490639,3.18121539,601.21,600.78,1.252]
[1743249490840,3.18121539,601.2,600.78,1.252]
[1743249491042,3.18121539,601.19,600.78,1.252]
[1743249491343,3.18121539,601.18,600.78,1.252]
[1743249491543,3.18121539,601.17,600.78,1.252]
[1743249491743,3.18121539,601.16,600.78,1.252]
[1743249491946,3.18121539,601.15,600.78,1.252]
[1743249492138,3.18121539,601.14,600.78,1.252]
[1743249492344,3.18121539,601.13,600.78,1.252]
[1743249492537,3.18121539,601.12,600.78,1.252]
[1743249492742,4.1355141,601.11,600.78,1.252]
[1743249493039,4.1355141,601.1,600.78,1.252]
[1743249493242,3.18121539,601.09,600.78,1.252]
[1743249493438,3.18121539,601.08,600.78,1.252]
[1743249493638,0.95429871,601.1,600.78,1.252]
[1743249493844,0.95429871,601.08,600.78,1.252]
[1743249494038,3.18113326,601.07,600.78,1.252]
[1743249494244,3.18113326,601.06,600.78,1.252]
[1743249494446,3.18113326,601.05,600.78,1.252]
[1743249494643,3.18113326,601.04,600.78,1.252]
[1743249494839,1.98145412,601.03,600.78,1.252]
[1743249495153,1.98145412,601.02,600.78,1.252]
[1743249495346,2.93575283,601.01,600.78,1.252]
[1743249495645,1.98145412,601.0,600.78,1.252]
[1743249495845,1.98145412,600.99,600.78,1.252]
[1743249496046,1.98145412,600.98,600.78,1.252]
[1743249496240,1.98145412,600.97,600.78,1.252]
[1743249496439,1.98145412,600.96,600.78,1.252]
[1743249496644,1.98145412,600.95,600.78,1.252]
[1743249496844,1.23165466,600.94,600.78,1.252]
[1743249497045,1.23165466,600.93,600.78,1.252]
[1743249497245,1.23165466,600.92,600.78,1.252]
[1743249497444,1.23165466,600.91,600.78,1.252]
[1743249497645,1.23165466,600.9,600.78,1.252]
[1743249497847,0.95429871,600.92,600.78,1.252]
[1743249498144,2.18607503,600.91,600.78,1.252]
[1743249498353,1.23177632,600.9,600.78,1.252]
[1743249498546,0.95429871,600.91,600.78,1.252]
[1743249498744,0.95429871,600.89,600.78,1.252]
[1743249498944,0.95429871,600.89,600.76,1.011]
[1743249499447,0.95429871,600.88,600.76,1.011]
[1743249500049,2.18620452,600.87,600.76,1.011]
[1743249500250,0.95429871,600.87,600.76,1.011]
[1743249501049,0.95429871,600.86,600.76,1.011]
[1743249501649,0.95429871,600.85,600.76,1.011]
[1743249502150,1.20012408,601.1,600.76,1.011]
[1743249502351,0.95468912,600.84,600.76,1.011]
[1743249503552,0.95468912,600.83,600.76,1.011]
[1743249504243,0.95468912,600.82,600.76,1.011]
[1743249504852,0.95468912,600.81,600.76,1.011]